Cogmind - Beta 13 @@@ ROGUE MODE // 2024.04.29 @ 14:37:29 Player: Red_Zig Result: Destroyed by Y-54 Guardian with Gatling Laser Performance ------------- Evolutions (4) 2000 Regions Visited (5) 1000 Robots Destroyed (114) 570 Value Destroyed (2345) 2345 Prototype IDs (12) 240 Alien Tech Used (0) 0 Bonus (30) 30 TOTAL SCORE: 6185 Bonus ------- High Alert Combat Kills 74 Friendly Fire -44 Cogmind --------- Core Integrity 0/850 Matter 172/300 Energy 99/100 System Corruption 1% Temperature Cool (12) Movement Core (50) Location -6/Extension Parts ------- > --- POWER (1) -------- (None) > --- PROPULSION (5) --- (None) > --- UTILITY (5) ------ (None) > --- WEAPON (4) ------- (None) > --- INVENTORY (5) ---- Scrap Engine Power Bank Long-range Missile Launcher Scatter Rocket Array Peak State ------------ > --- POWER ------------ Light Deuterium Engine > --- PROPULSION ------- Armored Treads Armored Treads Improved Medium Treads Wheel Wheel > --- UTILITY ---------- Medium Storage Unit Improved Trap Scanner Hardened Light Armor Plating Medium Insulated Plating Thermal Shield > --- WEAPON ----------- Advanced Assault Cannon Subdweller Shrapnel Launcher Long-range Missile Launcher Spear > --- INVENTORY -------- Ion Engine Scrap Engine Hardened Light Armor Plating Tractor Beam Power Bank Long-range Missile Launcher Long-range Missile Launcher Scatter Rocket Array Improved Datajack [Rating: 52] Favorites ----------- Power Improved Ion Engine Engine Improved Ion Engine Propulsion Light Treads Treads Light Treads Leg Aluminum Leg Wheel Wheel Utility Tractor Beam Device Tractor Beam Storage Medium Storage Unit Protection Medium Insulated Plating Weapon Heavy Assault Rifle Energy Gun Small Laser Energy Cannon Subdweller Beam Cannon Ballistic Gun Heavy Assault Rifle Ballistic Cannon Advanced Assault Cannon Launcher Subdweller Shrapnel Launcher Piercing Weapon Spear Special Melee Weapon Improved Datajack Build | -11 -10 -10 -8 -6 -6 ------- Run | Yrd Mat Sub Rec Fac Ext Slots Evolved 8 | . . . . 8 . Power . | . . . . . . Propulsion 3 | . . . . 3 . Utility 3 | . . . . 3 . Weapon 2 | . . . . 2 . Parts Attached 69 | 7 13 11 14 17 7 Power 4 | 1 1 . 1 . 1 Engine 4 | 1 1 . 1 . 1 Core . | . . . . . . Reactor . | . . . . . . Propulsion 11 | 2 . 2 4 3 . Treads 7 | 2 . . 4 1 . Leg 2 | . . 2 . . . Wheel 2 | . . . . 2 . Hover . | . . . . . . Flight . | . . . . . . Utility 18 | 2 4 . 1 7 4 Device 11 | 1 2 . 1 4 3 Storage 3 | 1 2 . . . . Processor . | . . . . . . Hackware . | . . . . . . Protection 4 | . . . . 3 1 Artifact . | . . . . . . Weapon 36 | 2 8 9 8 7 2 Energy Gun 3 | 2 1 . . . . Energy Cannon 1 | . . 1 . . . Ballistic Gun 14 | . 5 4 4 1 . Ballistic Cannon 1 | . . . . 1 . Launcher 14 | . 2 4 4 2 2 Special Weapon . | . . . . . . Impact Weapon . | . . . . . . Slashing Weapon . | . . . . . . Piercing Weapon 1 | . . . . 1 . Special Melee Weapon 2 | . . . . 2 . Unidentified Prototypes 1 | . . . . . 1 Parts Lost 15 | . . 5 1 . 9 Power . | . . . . . . Propulsion 6 | . . 2 . . 4 Utility 4 | . . . 1 . 3 Weapon 5 | . . 3 . . 2 Highest Loss Streak 5 | . . 3 1 . 5 To Critical Strikes . | . . . . . . Average Slot Usage (%) 94 | . 99 90 98 84 68 Engine 12 | . 14 14 14 5 3 Treads 22 | . 28 12 24 14 10 Leg 1 | . . 6 2 . . Wheel 1 | . . . . 11 10 Device 13 | . 14 14 13 17 10 Storage 12 | . 14 14 14 6 5 Ballistic Gun 19 | . 23 23 20 6 . Launcher 5 | . 3 1 7 12 13 Naked Turns 72 | . . . . . 72 Heaviest Build 61 | 11 24 30 30 55 61 Greatest Support 40 | 40 40 40 40 40 30 Greatest Overweight (x) 3 | . . 1 1 2 3 Average Overweight (x) . | . . . . 1 1 Largest Inventory Capacity 10 | 8 10 10 10 10 10 Average Capacity 9 | 6 9 10 10 10 9 Most Carried 10 | 6 10 10 10 10 10 Average Carried 9 | 4 9 9 9 8 8 Final Capacity 10 | 8 10 10 10 10 5 Final Carried 10 | 6 10 8 10 10 5 Class Distribution -------------------- 90% | Mutant 8% | Tank Dominant Class ---------------- Mutant | -10/Materials Mutant | -10/Subcaves Mutant | -8/Recycling Tank | -6/Factory Tank | -6/Extension Resources | -11 -10 -10 -8 -6 -6 ----------- Run | Yrd Mat Sub Rec Fac Ext Matter Collected 3420 | 270 1393 293 943 117 404 Remotely 2736 | 80 1237 293 869 117 140 Salvage Created 4341 | 66 1861 291 1428 200 495 Parts 240 | 2 122 26 58 10 22 Haulers Intercepted 3 | . 2 . 1 . . Recyclers Shooed 14 | . 5 . 8 . 1 Parts Field Recycled . | . . . . . . Retrieved Matter . | . . . . . . Parts Self-Destructed 13 | . . 13 . . . Prevented . | . . . . . . Kills | -11 -10 -10 -8 -6 -6 ------- Run | Yrd Mat Sub Rec Fac Ext Combat Hostiles Destroyed 39 | . 16 9 10 2 2 Guns 25 | . 16 5 4 . . Cannons 1 | . . . 1 . . AOE 13 | . . 4 5 2 2 Classes Destroyed 18 | 1 8 4 3 . 2 Worker 17 | . 14 . . 1 2 Builder 15 | . 7 . 3 1 4 Tunneler 4 | . 1 . 1 1 1 Hauler 3 | . 2 . 1 . . Recycler 29 | 1 11 . 14 . 3 Operator 2 | . 1 . . 1 . Turret 1 | . . 1 . . . Watcher 4 | . 3 . . . 1 Swarmer 10 | . 6 4 . . . Grunt 12 | . 10 2 . . . Brawler 1 | . . . 1 . . Protector 2 | . . . 2 . . Sentry 8 | . . 1 6 1 . Hunter 1 | . . . . . 1 Programmer 2 | . . . 1 1 . Behemoth 1 | . . . . . 1 Artisan 1 | . . 1 . . . Subdweller 2 | . . 2 . . . Best Kill Streak 12 | 1 5 5 12 3 11 Combat Bots Only 5 | . 3 5 5 1 2 Max Kills in Single Turn 3 | 1 1 3 3 2 3 Gunslinging . | . . . . . . Exploded 3 | . . 3 2 1 1 Melee . | . . . . . . Uniques/NPCs Destroyed . | . . . . . . Combat | -11 -10 -10 -8 -6 -6 -------- Run | Yrd Mat Sub Rec Fac Ext Hostile Shots Fired 412 | . 57 61 29 76 189 Missed 154 | . 16 19 10 32 77 Damage Taken 3639 | . 492 678 310 491 1668 Core 1087 | . 76 136 15 54 806 Absorbed by Shields . | . . . . . . Ignored by Resistances 150 | . . . . 122 28 Core Remaining (%) 54 | 100 . . 9 . . Volleys Fired 349 | 6 195 40 79 9 20 Largest 2 | 2 2 2 2 1 1 Hottest 110 | 80 46 80 110 43 50 Shots Fired 565 | 12 336 74 114 9 20 Gun 456 | 12 306 64 72 2 . Cannon 15 | . . 3 1 . 11 Launcher 94 | . 30 7 41 7 9 Special . | . . . . . . Kinetic 468 | . 301 64 88 3 12 Thermal 16 | 12 . 3 1 . . Explosive 76 | . 30 7 25 6 8 Electromagnetic 5 | . 5 . . . . Robot Hit Streak 15 | 3 15 10 7 2 8 Robot Miss Streak 4 | 1 4 4 3 1 4 Penetration Max . | . . . . . . Secondary Targets . | . . . . . . Shots Hit Robots 281 | 8 158 41 55 8 11 Core Hits 201 | 2 66 18 69 11 35 Critical Kills 1 | . . . 1 . . Critical Parts Destroyed 1 | . . . 1 . . Critical Strikes 3 | . . . 2 . 1 Destroy 2 | . . . 2 . . Blast 1 | . . . . . 1 Melee Attacks 5 | . . . . 5 . Impact . | . . . . . . Slashing . | . . . . . . Piercing 2 | . . . . 2 . Sneak Attacks 3 | . . . . 3 . Combat Hostiles . | . . . . . . Follow-up Attacks . | . . . . . . Damage Inflicted 8327 | 99 2475 687 2796 680 1590 Guns 4018 | 99 2386 430 1059 44 . Cannons 291 | . . . 25 . 266 Explosions 3870 | . 89 257 1704 572 1248 Melee 64 | . . . . 64 . Ramming 84 | . . . 8 . 76 Kinetic 4684 | . 2386 430 1459 112 297 Thermal 371 | 99 . . 25 247 . Explosive 3020 | . 89 257 1304 153 1217 Electromagnetic 104 | . . . . 104 . Impact . | . . . . . . Slashing . | . . . . . . Piercing 64 | . . . . 64 . Highest Corruption 3 | . 3 3 3 1 1 Average Corruption 2 | . 2 3 3 1 1 Corruption Purged . | . . . . . . Corruption Blocked . | . . . . . . Effects 139 | . 60 28 45 . 6 Message Errors 40 | . 17 9 13 . 1 Matter Fused 29 | . 15 3 10 . 1 Heat Flow Errors 22 | . 9 9 1 . 3 Energy Discharges 14 | . 6 1 7 . . Parts Rejected 1 | . . . 1 . . Parts Fused 1 | . . . 1 . . Data Loss (minor) 14 | . 6 1 6 . 1 Data Loss (major) 6 | . 2 2 2 . . Misfires 5 | . 1 2 2 . . Alerts 2 | . 1 1 . . . Weapon Failures 5 | . 3 . 2 . . Overload Shots . | . . . . . . Overflow Damage 244 | . . . 85 94 65 Projectiles . | . . . . . . Explosions 244 | . . . 85 94 65 Melee . | . . . . . . Knockbacks 3 | . . . . . 3 Impact . | . . . . . . Kinetic 3 | . . . . . 3 Secondary . | . . . . . . Self-Inflicted Damage 214 | . 81 62 38 . 33 Shots 9 | . 4 3 2 . . Rammed 23 | . . . 5 . 18 Targets Rammed 23 | . . . 5 . 18 Kicked . | . . . . . . Crushed . | . . . . . . Highest Temperature 264 | 90 255 236 88 1 264 Average Temperature 68 | 42 88 82 11 1 88 Received Heat Transfer 1068 | . 156 141 45 222 504 Effects 1 | . . . . . 1 Energy Bleed 1 | . . . . . 1 Siege Activations . | . . . . . . Robots Corrupted . | . . . . . . Combat Hostiles . | . . . . . . Parts Fried . | . . . . . . Impact Corruptions . | . . . . . . Robots Melted . | . . . . . . Combat Hostiles . | . . . . . . Parts Melted . | . . . . . . Heat Transferred 412 | 225 . . 37 150 . Parts Sabotaged 3 | . . . . 3 . Parts Stolen . | . . . . . . Parts Stripped . | . . . . . . Power Chain Reactions . | . . . . . . Alert | -11 -10 -10 -8 -6 -6 ------- Run | Yrd Mat Sub Rec Fac Ext Peak Influence 717 | 5 622 . 629 717 383 Initial 266 | . 3 . 19 263 266 Average 260 | . 266 . 233 378 266 Maximum Alert Level 3 | . 2 . 2 3 1 Low Security (%) 40 | 100 46 . 44 . 16 Level 1 28 | . 11 . 33 66 83 Level 2 30 | . 42 . 21 29 . Level 3 . | . . . . 4 . Level 4 . | . . . . . . Level 5 . | . . . . . . High Security . | . . . . . . Max Security . | . . . . . . Squads Dispatched 11 | . 4 . . 6 1 Investigation 5 | . 3 . . 2 . Extermination 2 | . . . . 2 . Reinforcement 2 | . 1 . . . 1 Assault 2 | . . . . 2 . Garrison . | . . . . . . Intercept . | . . . . . . Searches Triggered . | . . . . . . Construction Impeded . | . . . . . . Haulers Reinforced . | . . . . . . Active Scanning Responses . | . . . . . . Cargo Convoy Interrupts . | . . . . . . Stealth | -11 -10 -10 -8 -6 -6 --------- Run | Yrd Mat Sub Rec Fac Ext Distress Signals 3 | . . . 1 . 2 Communications Jammed . | . . . . . . Distress Signals . | . . . . . . Times Spotted 89 | . 27 15 5 16 26 Peak Tracking Total 12 | . 3 5 2 11 12 Tactical Retreats 12 | . 2 2 . 1 7 Traps | -11 -10 -10 -8 -6 -6 ------- Run | Yrd Mat Sub Rec Fac Ext Traps Triggered 6 | . 5 1 . . . Indirectly . | . . . . . . Trap Hack Attempts . | . . . . . . Triggered . | . . . . . . Disarmed . | . . . . . . Reprogrammed . | . . . . . . Reused . | . . . . . . Traps Extracted . | . . . . . . Installed . | . . . . . . Triggered . | . . . . . . Machines | -11 -10 -10 -8 -6 -6 ---------- Run | Yrd Mat Sub Rec Fac Ext Machines Disabled 57 | . 22 1 18 16 . Max in Single Turn 9 | . 2 1 2 9 . Machines Repaired . | . . . . . . Machines Dismantled . | . . . . . . Machines Sabotaged . | . . . . . . Overloaded Fab Kills . | . . . . . . Hacking | -11 -10 -10 -8 -6 -6 --------- Run | Yrd Mat Sub Rec Fac Ext Machines Accessed 17 | . 5 1 5 3 3 Terminals 14 | . 4 . 5 2 3 Fabricators . | . . . . . . Repair Stations . | . . . . . . Recycling Units 1 | . 1 . . . . Scanalyzers 1 | . . . . 1 . Garrison Access . | . . . . . . Total Hacks 50 | . 13 9 16 7 5 Successful 32 | . 7 9 10 3 3 Failed 18 | . 6 . 6 4 2 Catastrophic 2 | . . . 1 . 1 Database Lockouts . | . . . . . . Manual 34 | . 12 . 16 4 2 Terminals 37 | . 11 . 16 5 5 Fabricators . | . . . . . . Repair Stations . | . . . . . . Recycling Units 2 | . 2 . . . . Scanalyzers 2 | . . . . 2 . Garrison Access . | . . . . . . Terminal Hacks 13 | . 1 9 . 1 2 Record 8 | . . 8 . . . Open Door 3 | . . . . 1 2 Alert Level 1 | . 1 . . . . Derelict Proto ID Bank 1 | . . 1 . . . Fabricator Hacks . | . . . . . . Repair Station Hacks . | . . . . . . Recycling Unit Hacks 1 | . 1 . . . . Retrieve Matter 1 | . 1 . . . . Scanalyzer . | . . . . . . Garrison Access Hacks . | . . . . . . Unauthorized Hacks 18 | . 5 . 10 2 1 Terminals 17 | . 5 . 10 1 1 Track 4 | . 1 . 3 . . Assimilate 1 | . . . . . 1 Botnet 9 | . 3 . 5 1 . Operators 3 | . 1 . 2 . . Fabricators . | . . . . . . Repair Stations . | . . . . . . Recycling Units . | . . . . . . Scanalyzers 1 | . . . . 1 . Extract 1 | . . . . 1 . Garrison Access . | . . . . . . Data Cores Recovered . | . . . . . . Used . | . . . . . . Hacking Detections 12 | . 5 . 4 2 1 Full Trace Events 2 | . 1 . . 1 . Feedback Events . | . . . . . . Feedback Blocked . | . . . . . . Robot Schematics Acquired . | . . . . . . Robots Built . | . . . . . . Authchips . | . . . . . . Time . | . . . . . . Total Robot Build Rating . | . . . . . . Part Schematics Acquired 2 | . . . . 2 . Parts Built . | . . . . . . Authchips . | . . . . . . Time . | . . . . . . Total Part Build Rating . | . . . . . . Parts Repaired . | . . . . . . Time . | . . . . . . Parts Recycled . | . . . . . . Recycled Matter . | . . . . . . Retrieved Matter . | . . . . . . Retrieved Components . | . . . . . . Parts Scanalyzed . | . . . . . . Part Schematics Acquired . | . . . . . . Parts Damaged . | . . . . . . Bothacking | -11 -10 -10 -8 -6 -6 ------------ Run | Yrd Mat Sub Rec Fac Ext Used RIF Installer . | . . . . . . Robots Hacked 2 | . . . . 2 . Non-combat 2 | . . . . 2 . Combat . | . . . . . . Robot Hacks Applied 3 | . . . . 3 . no_distress 2 | . . . . 2 . find_chute 1 | . . . . 1 . Relay Couplers Released . | . . . . . . Fabnet Peak Effective % . | . . . . . . Robots Rewired . | . . . . . . Allies Hacked . | . . . . . . Hacks Repelled . | . . . . . . Allies | -11 -10 -10 -8 -6 -6 -------- Run | Yrd Mat Sub Rec Fac Ext Total Allies 3 | . . . . . 3 Largest Group 3 | . . . . . 3 Highest-Rated Group 77 | . . . . . 77 Highest-Rated Ally 31 | . . . . . 31 Total Orders 1 | . . . . 1 . EXPLORE 1 | . . . . 1 . Ally Attacks 8 | . . . . . 8 Total Damage 149 | . . . . . 149 Kills 1 | . . . . . 1 Allies Corrupted . | . . . . . . Allies Melted . | . . . . . . Intel | -11 -10 -10 -8 -6 -6 ------- Run | Yrd Mat Sub Rec Fac Ext Robot Analysis Total . | . . . . . . Derelict Logs Recovered 2 | . . 2 . . . Drone Launches 2 | . . . . 2 . Drone Recoveries . | . . . . . . Exploration | -11 -10 -10 -8 -6 -6 ------------- Run | Yrd Mat Sub Rec Fac Ext Turns Passed 9767 | 94 4137 1900 2349 501 786 Spaces Moved 5196 | 40 2110 838 1207 385 616 Core 149 | 3 . . . . 146 Treads 3890 | 37 2110 605 1101 34 3 Legs 339 | . . 233 106 . . Wheels 818 | . . . . 351 467 Hover . | . . . . . . Flight . | . . . . . . Fastest Speed 50 | 50 160 120 170 95 50 Average Speed 160 | 151 160 209 173 114 99 Slowest Speed 250 | 160 160 240 250 170 160 Overloaded Moves . | . . . . . . Propulsion Burnouts . | . . . . . . Robots Hopped . | . . . . . . Cave-ins Triggered . | . . . . . . Exploration Rate (%) 50 | 3 100 35 99 14 52 Regions Visited 5 Branch Regions 3 Pre-discovered Areas . | . . . . . . Known Exits Taken . | . . . . . . Unknown Exits Taken 5 | 1 1 1 1 1 . Scrap Searched . | . . . . . . Spaces Dug 32 | . . . 32 . . Terrain Destroyed 768 | . 160 17 403 117 71 Melee . | . . . . . . Projectile 1 | . . . 1 . . AOE 767 | . 160 17 402 117 71 Terrain Rammed . | . . . . . . Walls Destroyed . | . . . . . . Machines Disabled . | . . . . . . Actions | -11 -10 -10 -8 -6 -6 --------- Run | Yrd Mat Sub Rec Fac Ext Total 6034 | 58 2532 909 1341 429 765 Wait 340 | . 200 16 29 3 92 Move 5191 | 39 2109 837 1206 384 616 Hop . | . . . . . . Pick Up 21 | 6 6 2 1 4 2 Fast Attach 31 | 7 4 2 7 10 1 Attach 13 | . . 4 . 5 4 Detach 4 | . . 1 . 1 2 Swap 25 | . 9 5 7 2 2 Drop 30 | . 9 2 6 6 7 Fire 349 | 6 195 40 79 9 20 Melee 5 | . . . . 5 . Ram 18 | . . . . . 18 Kick . | . . . . . . Crush 5 | . . . 5 . . Escape Stasis . | . . . . . . Rewire 2 | . . . 1 . 1 Trap . | . . . . . . Miscellaneous . | . . . . . . Route ------- -11/Scrapyard -10/Materials (discovered 5 exits: [*Mat x3] / [*Min] / *Sub) -10/Subcaves (discovered 2 exits: [*Mat] / *Rec) -8/Recycling -6/Factory -6/Extension History --------- Turn | Location | Event 11 | -11/Scrapyard | Discovered new exit (range 15) 95 | -11/Scrapyard | Entered Materials 252 | -10/Materials | Discovered new exit (range 14) 310 | -10/Materials | Build established: Mutant 431 | -10/Materials | Discovered new exit (range 16) 755 | -10/Materials | Discovered new exit (range 13) 985 | -10/Materials | Discovered new exit (range 4) 1594 | -10/Materials | Discovered new exit (range 6) 4232 | -10/Materials | Entered Subcaves 4584 | -10/Subcaves | A swath of the cavern ceiling suddenly collapsed 4639 | -10/Subcaves | Discovered new exit (range 6) 4749 | -10/Subcaves | Learned Materials emergency access door positions 5015 | -10/Subcaves | Learned Materials garrison access intel 5214 | -10/Subcaves | Discovered new exit (range 14) 5372 | -10/Subcaves | Visited 4L-MR0's lab 5557 | -10/Subcaves | Core integrity fell below 50% 5664 | -10/Subcaves | Core integrity fell below 20% 5704 | -10/Subcaves | Lost 3 parts (1n2w) 5913 | -10/Subcaves | Found Power Bank 6132 | -10/Subcaves | Entered Recycling 6141 | -8/Recycling | Found Scrap Engine 6682 | -8/Recycling | Discovered new exit (range 16) 8481 | -8/Recycling | Entered Factory 8481 | -6/Factory | Evolved 8 slots: Propulsion x3, Utility x3, Weapon x2 8723 | -6/Factory | Spotted B-75 Beast 8831 | -6/Factory | First assault squad dispatched 8883 | -6/Factory | Found Prototype Launcher 8976 | -6/Factory | Build established: Tank 8978 | -6/Factory | Discovered new exit (range 6) 8982 | -6/Factory | Entered Extension 9283 | -6/Extension | Identified Scatter Rocket Array 9407 | -6/Extension | Disrupted transfer network 9486 | -6/Extension | Spotted B-75 Beast 9519 | -6/Extension | Destroyed B-75 Beast 9552 | -6/Extension | Lost 5 parts (2n2u1w) 9709 | -6/Extension | Rescued a captive Derelict 9727 | -6/Extension | Lost 4 parts (2n1u1w) 9731 | -6/Extension | Rescued a captive Derelict 9757 | -6/Extension | Core integrity fell below 50% 9759 | -6/Extension | Spotted B-75 Beast 9764 | -6/Extension | Core integrity fell below 20% 9768 | -6/Extension | Destroyed by Y-54 Guardian with Gatling Laser Last Messages --------------- 09755_ Critical hit (Burn: +37). 09756_ Slammed into G-50 Soldier. 09757_ U-05 Engineer lays Concrete. 09757_ Slammed into G-50 Soldier. 09758_ U-05 Engineer lays Concrete. 09758_ Slammed into G-50 Soldier. 09759_ U-05 Engineer lays Concrete. 09759_ Slammed into G-67 Veteran. 09760_ U-05 Engineer lays Concrete. 09760_ Slammed into G-50 Soldier. 09761_ U-05 Engineer lays Concrete. 09761_ Slammed into G-50 Soldier. 09762_ Acquired 96 matter. 09762_ U-05 Engineer lays Concrete. 09762_ Slammed into Y-54 Guardian. 09763_ U-05 Engineer lays Concrete. 09763_ Slammed into Y-54 Guardian. 09764_ U-05 Engineer lays Concrete. 09765_ R-10 Processor collects System Shield. 09765_ U-05 Engineer lays Concrete. Map ----- +----------------------------------------------------+ | #???^^ ^ ??# #????????????????????????? | | ##?^"^" ^ #?# #????????????????????????? | | ??# "T"^^ T##### ^^ #????????????????????????? | | ??# """ ^ ##???#^### ^^^#????????????????????????? | | ??# #????# #?# #????????????????????????? | | ??###"T"# #????#+###/## #????????????????????????? | | ?????######????# / #????????????????????????? | | ???????????????# # #????????????????????????? | | ???????????????# = [ # #????????????????????????? | | ???????????????# [ # #????????????????????????? | | ???????????????# # #????????????????????????? | | ???????????????# = # #????????????????????????? | | ???????????????######## #????????????????????????? | | ??????????????????????#Y#????????????????????????? | | ??????????????????????# #????????????????????????? | | ??????????????????????# #??##?##?? #?????????????? | | ????????????????????###g### ## ### ##????????????? | | ????????????????????#"" "" "" ""#???????????? | | ????????????????????# "g"YY % " " #???????????? | | ????????????????????# gg % R #???????????? | | ??????????##### ?# #???????????? | | ######### ########## % ####????????? | | A ???????? | | ???????? | | t ???????? | | @R BB ???????? | | % u tu u k k u BB t ???????? | | ########### ######### u ####????????? | | ????????????? # u #???????????? | | ???????????????? ### R #???????????? | | ????????????????????# #???????????? | | ????????????????????# #???????????? | | ????????????????????######T#"""#######???????????? | | ??????????????????????????#??????????????????????? | | ?????????????????????????????????????????????????? | | | | | | | | | | | | | | | | | | | | | | | | | | | | | | | +----------------------------------------------------+ Best States ------------- Heat Dissipation 37 Energy Generation 14 Energy Capacity 265 Matter Stores 300 Matter Capacity 300 Sight Range 16 Terrain Scan Density 10 Armor Coverage 375 Resistance: TH 20 Resistance: EM 20 Evasion (%) 50 Recoil Reduction 2 Item Schematics ----------------- Mni. Assault Cannon | -6/Factory | Extracted Lyr. Light Armor Plating | -6/Factory | Extracted Robot Schematics ------------------ None Fabricated ------------ Nothing Alien Tech Used ----------------- None Achievements -------------- None Challenges ------------ None Game ------ Seed AutogunMicrowarpComputer Manual? 0 Play Time 01:20:46 Cumulative 55.9 hours Start 2024.04.29 @ 01:18:05 End 2024.04.29 @ 14:37:29 Sessions 2 Manual Loads 0 Difficulty Rogue Special Mode None Game No. 52 Rogue 40 Adventurer 12 Explorer 0 Win Type - Total 1 Types 1/0/0/0/0/0/0/0/0 Lore% 25 Gallery% 41 Achievement% 33 Wizard Run 0 Options --------- Layout 2 ASCII 0 Keyboard 0 Movement Numpad Keybinds 0 Fullscreen 1 Font 24/Smallcaps Map View 50x44 Zoom Use 20% Tactical HUD 1 Map Filters NONE Filters NONE Steam 1 RUN: d38c4068-0f67-4398-890b-84a958985306